[Event "Tata Steel India Women Rapid 2024"]
[Site "Kolkata"]
[Date "2024.11.15"]
[Round "7.2"]
[White "Divya Deshmukh"]
[Black "Dzagnidze, Nana"]
[Result "0-1"]
[ECO "B51"]
[WhiteElo "2493"]
[BlackElo "2518"]
[Annotator "RC"]
[PlyCount "140"]
[EventDate "2024.11.06"]
[EventType "tourn"]
[EventCountry "IND"]
[SourceTitle "playchess.com"]
[Source "ChessBase"]
[SourceQuality "1"]
[TimeControl "1500+10"]

1. e4 {[%emt 0:00:02]} c5 {[%emt 0:00:03]} 2. Nf3 {[%emt 0:00:02]} d6 {[%emt 0:00:01]} 3. Bb5+ {[%emt 0:00:11]} Nd7 {[%emt 0:00:04]} 4. O-O {[%emt 0:00:28]} a6 {[%emt 0:00:03]} 5. Be2 {[%emt 0:00:09]} Ngf6 {[%emt 0:00:30]} 6. d3 {[%emt 0:00:29]} g6 {[%emt 0:00:43]} 7. Nfd2 {[%emt 0:00:08]} Bg7 {[%emt 0:00:16]} 8. f4 {[%emt 0:00:03]} O-O {[%emt 0:00:48]} 9. a4 {[%emt 0:00:02]} b6 {[%emt 0:00:31]} 10. Nc3 {[%emt 0:00:11]} Bb7 {[%emt 0:00:07]} 11. Qe1 {[%emt 0:00:44]} Ne8 {[%emt 0:01:12]} 12. Nc4 {[%emt 0:01:45]} Nc7 {[%emt 0:02:49]} 13. f5 {[%emt 0:00:24]} gxf5 {[%emt 0:04:02]} 14. Rxf5 {[%emt 0:00:36]} Ne6 {[%emt 0:00:10]} 15. Rh5 {[%emt 0:08:35]} Kh8 {[%emt 0:03:56]} 16. Rh3 {[%emt 0:03:34]} Bd4+ {[%emt 0:02:56]} 17. Kh1 {[%emt 0:01:45]} Nf6 {[%emt 0:00:26]} 18. Qh4 {[%emt 0:00:19]} b5 19. Ne3 {[%emt 0:08:53]} Rg8 20. Ned5 {[%emt 0:00:10]} Nf8 21. Bg5 {[%emt 0:00:10]} b4 22. Rf1 {[%emt 0:00:10]} bxc3 23. bxc3 {[%emt 0:00:10]} Be5 24. Rxf6 {[%emt 0:00:10]} Rxg5 25. Rxf7 {[%emt 0:00:10]} Rg7 {[%emt 0:10:43]} 26. Rxg7 {[%emt 0:00:10]} Bxg7 {[%emt 0:00:10]} 27. Nxe7 {[%emt 0:00:10]} Qe8 {[%emt 0:00:10]} 28. Nf5 {[%emt 0:00:10]} Qxa4 {[%emt 0:00:10]} 29. Bf1 {[%emt 0:00:10]} Bc8 {[%emt 0:00:10]} 30. Nxg7 {[%emt 0:00:10]} Bxh3 {[%emt 0:00:10]} 31. Nh5 {[%emt 0:00:10]} Qd7 {[%emt 0:00:10]} 32. Qf6+ {[%emt 0:00:10]} Kg8 33. gxh3 {[%emt 0:00:10]} Qf7 {[%emt 0:00:20]} 34. Qg5+ Kh8 {[%emt 0:00:10]} 35. Be2 {[%emt 0:00:20]} Rb8 {[%emt 0:00:10]} 36. Ng3 {[%emt 0:00:10]} Qf2 {[%emt 0:00:10]} 37. Qc1 {[%emt 0:00:10]} Ng6 {[%emt 0:00:10]} 38. Qa1 {[%emt 0:00:10]} Nh4 {[%emt 0:00:10]} 39. c4+ {[%emt 0:00:10]} Kg8 {[%emt 0:00:10]} 40. Bf1 {[%emt 0:00:10]} Nf3 {[%emt 0:00:10]} 41. Bg2 Qe1+ 42. Qxe1 Nxe1 43. e5 {[%emt 0:00:30]} Nxg2 {[%emt 0:00:30]} 44. Kxg2 {[%emt 0:00:10]} dxe5 {[%emt 0:00:10]} 45. Ne4 a5 {[%emt 0:00:10]} 46. Nxc5 {[%emt 0:00:20]} Rb2 {[%emt 0:00:10]} 47. Kf3 {[%emt 0:00:10]} Rxc2 {[%emt 0:00:10]} 48. Ke4 {[%emt 0:00:10]} Ra2 {[%emt 0:00:10]} 49. Na6 {[%emt 0:00:10]} a4 {[%emt 0:00:10]} 50. c5 {[%emt 0:00:10]} Rc2 {[%emt 0:00:10]} 51. Kd5 {[%emt 0:00:10]} Kf7 {[%emt 0:00:10]} 52. Kd6 {[%emt 0:00:10]} Rc3 {[%emt 0:00:10]} 53. Nb4 {[%emt 0:00:10]} a3 {[%emt 0:00:10]} 54. c6 {[%emt 0:00:10]} a2 {[%emt 0:00:10]} 55. Nxa2 {[%emt 0:00:10]} Rxd3+ 56. Kxe5 {[%emt 0:00:10]} Ke7 {[%emt 0:00:20]} 57. Nb4 {[%emt 0:00:10]} Rxh3 58. Nd5+ {[%emt 0:00:10]} Kd8 59. Kd6 {[%emt 0:00:10]} Rh6+ {[%emt 0:00:30]} 60. Kc5 Rxh2 {[%emt 0:00:10]} 61. Kb6 {[%emt 0:00:20]} Rb2+ {[%emt 0:00:10]} 62. Kc5 {[%emt 0:00:10]} h5 {[%emt 0:00:10]} 63. Kd6 {[%emt 0:00:10]} Rd2 {[%emt 0:00:10]} 64. c7+ {[%emt 0:00:10]} Kc8 65. Kc6 {[%emt 0:00:10]} Rc2+ {[%emt 0:00:20]} 66. Kd6 h4 {[%emt 0:00:10]} 67. Nf4 {[%emt 0:00:20]} Rc3 {[%emt 0:00:10]} 68. Nd5 {[%emt 0:00:10]} Rd3 {[%emt 0:00:10]} 69. Kc6 Rxd5 {[%emt 0:00:10]} 70. Kxd5 h3 {[%emt 0:00:10]} 0-1

[Event "Tata Steel India Women Rapid 2024"]
[Site "Kolkata"]
[Date "2024.11.15"]
[Round "7.3"]
[White "Vaishali, Rameshbabu"]
[Black "Dronavalli, Harika"]
[Result "1-0"]
[ECO "D00"]
[WhiteElo "2490"]
[BlackElo "2493"]
[Annotator "TA"]
[PlyCount "123"]
[EventDate "2024.11.06"]
[EventType "tourn"]
[EventCountry "IND"]
[SourceTitle "playchess.com"]
[Source "ChessBase"]
[SourceQuality "1"]
[TimeControl "1500+10"]

{[%evp 60,122,310,305,354,362,683,655,633,486,462,459,438,465,452,446,6367,6323,5557,5506,1841,397,435,405,400,400,390,392,392,399,407,381,385,352,737,733,855,842,956,956,912,845,863,856,1140,1031,5302,4739,2041,1408,29993,29994,29994,29995,29995,29996,29996,29987,29987,29988,29988,29988,29988,29986,29989]} 1. Nc3 {[%emt 0:00:03]} d5 {[%emt 0:00:10]} 2. d4 {[%emt 0:00:02]} Nf6 {[%emt 0:00:09]} 3. Bf4 {[%emt 0:00:02]} e6 {[%emt 0:00:09]} 4. Nb5 {[%emt 0:00:04]} Na6 {[%emt 0:00:02]} 5. e3 {[%emt 0:00:02]} Be7 {[%emt 0:00:08]} 6. h4 {[%emt 0:00:08]} O-O {[%emt 0:00:06]} 7. h5 {[%emt 0:00:05]} c6 {[%emt 0:01:18]} 8. Nc3 {[%emt 0:00:03]} c5 {[%emt 0:00:01]} 9. h6 {[%emt 0:01:17]} g6 {[%emt 0:00:03]} 10. Bxa6 {[%emt 0:00:11]} bxa6 {[%emt 0:00:02]} 11. Nf3 {[%emt 0:00:02]} a5 {[%emt 0:01:19]} 12. O-O {[%emt 0:00:33]} Ba6 {[%emt 0:01:36]} 13. Re1 {[%emt 0:00:04]} Rc8 {[%emt 0:00:01]} 14. dxc5 {[%emt 0:02:09]} Bxc5 {[%emt 0:00:03]} 15. Bg5 {[%emt 0:00:07]} Be7 {[%emt 0:06:05]} 16. Qd4 {[%emt 0:00:57]} Ne8 {[%emt 0:00:05]} 17. Bxe7 {[%emt 0:00:14]} Qxe7 {[%emt 0:00:02]} 18. e4 {[%emt 0:00:21]} Rc4 {[%emt 0:00:48]} 19. Qd2 {[%emt 0:00:43]} dxe4 {[%emt 0:01:05]} 20. Ne5 {[%emt 0:00:06]} Rc7 {[%emt 0:03:39]} 21. Nxe4 {[%emt 0:00:27]} Bb7 {[%emt 0:00:16]} 22. Ng3 {[%emt 0:03:02]} Nf6 {[%emt 0:03:01]} 23. Rad1 {[%emt 0:00:13]} Bd5 {[%emt 0:02:30]} 24. Qg5 {[%emt 0:02:46]} Re8 {[%emt 0:02:30]} 25. c4 {[%emt 0:01:11]} Bb7 {[%emt 0:00:27]} 26. Rd4 {[%emt 0:03:04]} Nd7 {[%emt 0:01:47]} 27. Qd2 {[%emt 0:03:47]} Nxe5 {[%emt 0:00:04]} 28. Rxe5 {[%emt 0:00:02]} f6 {[%emt 0:01:22]} 29. Rxa5 {[%emt 0:00:40]} Ba8 {[%emt 0:00:19]} 30. b3 {[%emt 0:00:28]} e5 {[%emt 0:00:27]} 31. Rd6 {[%emt 0:00:06]} e4 {[%emt 0:00:00]} 32. Nf1 {[%emt 0:00:57]} Rf8 $2 {[%emt 0:00:41]} (32... f5 33. Qf4 Rd8) 33. Qd4 {[%emt 0:00:15]} f5 {[%emt 0:00:11]} 34. Re5 {[%emt 0:04:19]} Qg5 {[%emt 0:00:04]} 35. Rd7 {[%emt 0:00:46]} Rxd7 {[%emt 0:00:04]} 36. Qxd7 {[%emt 0:00:02]} Qxh6 {[%emt 0:00:01]} 37. Re7 {[%emt 0:00:02]} (37. Qxa7 f4 38. Qe7 Qg7 $18) 37... f4 {[%emt 0:00:25]} (37... g5 $142 38. Ne3 (38. Qxa7 f4 $18) 38... Qg6) 38. Qe6+ $18 {[%emt 0:00:11]} (38. Qxa7 e3 39. Qd7 (39. fxe3 f3 $17) 39... exf2+ 40. Kxf2 Qh4+ 41. Kg1 Qf6 $16) 38... Kh8 {[%emt 0:00:00]} 39. Qe5+ {[%emt 0:00:01]} Kg8 {[%emt 0:00:01]} 40. Rxa7 $2 {[%emt 0:00:13]} (40. Nh2 {[%cal Oh2g4] Threatening mate with Ng4!} f3 41. Qe6+ (41. Rxa7 e3 $18) 41... Kh8 42. Ng4 (42. Rxa7 e3 $18) 42... Qc1+ 43. Kh2) 40... e3 $18 {[%emt 0:00:21]} 41. Rxa8 {[%emt 0:00:15]} (41. fxe3 f3 42. Nh2 f2+ 43. Kf1 g5 44. Rxa8 Rxa8 45. Qd5+ (45. Kxf2 Rxa2+ 46. Kg1 Qh4 $11) 45... Kg7 46. Qb7+ (46. Qxa8 Qxh2 47. Qb7+ Kf8 $18) (46. Kxf2 Rxa2+ 47. Kf1 Qf6+ 48. Nf3 g4 $11) 46... Kg6 47. Qxa8 Qxh2 48. Qe4+ (48. Kxf2 Qh4+ 49. Ke2 Qh5+ 50. Qf3 Qh1 $18) 48... Kg7 49. Kxf2 Qc7) 41... Rxa8 {[%emt 0:00:00]} 42. Qd5+ {[%emt 0:00:01]} (42. fxe3 Rxa2 43. Qe6+ Kf8 $11) 42... Kg7 {[%emt 0:00:03]} 43. Qb7+ {[%emt 0:00:56]} Kf6 {[%emt 0:00:03]} 44. Qxa8 {[%emt 0:00:04]} e2 {[%emt 0:00:01]} 45. Qa6+ {[%emt 0:00:21]} Kf7 {[%emt 0:00:38]} 46. Qb7+ {[%emt 0:00:42]} (46. Qa7+ Kg8 47. Qb8+ Kf7 48. Qc7+ Ke6 49. Qc6+ Kf7) 46... Kf8 $2 {[%emt 0:00:01]} (46... Kf6) 47. Qb4+ $18 {[%emt 0:00:12]} (47. Qe4 Qh1+ 48. Kxh1 exf1=Q+ 49. Kh2 Qxf2 $16) 47... Kf7 {[%emt 0:00:10]} 48. Nh2 {[%emt 0:00:09]} f3 {[%emt 0:00:08]} 49. Nxf3 {[%emt 0:00:05]} (49. gxf3 $2 Qc1+ 50. Kg2 e1=Q $19 (50... e1=B $2 51. Qb7+ Kg8 52. Ng4 $18)) 49... Qc1+ {[%emt 0:00:02]} 50. Qe1 {[%emt 0:00:08]} Qd1 {[%emt 0:00:08]} 51. Kh2 {[%emt 0:00:33]} h6 {[%emt 0:00:30]} 52. Qc3 {[%emt 0:00:09]} Qf1 {[%emt 0:00:09]} 53. Qe3 {[%emt 0:00:12]} g5 {[%emt 0:00:02]} 54. Ne5+ {[%emt 0:00:05]} Kf8 {[%emt 0:00:09]} 55. Qc5+ {[%emt 0:00:17]} Ke8 {[%emt 0:00:16]} 56. Qc6+ {[%emt 0:00:08]} Ke7 {[%emt 0:00:01]} 57. Qd7+ {[%emt 0:00:02]} (57. Qxh6 e1=Q (57... e1=B $2 58. Qxg5+ Ke6 59. f4 $18) 58. Qg7+ Ke6 $11) 57... Kf6 {[%emt 0:00:01]} 58. Ng4+ {[%emt 0:00:20]} Kg6 {[%emt 0:00:02]} 59. Qe6+ {[%emt 0:00:06]} Kg7 {[%emt 0:00:24]} 60. Qf6+ {[%emt 0:00:08]} ({Worse is} 60. Nxh6 e1=Q 61. Nf5+ Kf8 62. Qh6+ Ke8 63. Qg6+ Kd8 64. Qd6+ Ke8 65. Qg6+ Kd7 66. Qf7+ Kc8 67. Nd6+ Kd8 68. Nb7+ Kc8 69. Nd6+ Kd8 70. Nb7+ Kc8 71. Nd6+ $11) 60... Kh7 {[%emt 0:00:12]} 61. Qf7+ {[%emt 0:00:06]} ({Stronger than} 61. Nxh6 e1=Q (61... e1=B $2 {is the wrong capture.} 62. Nf5 $18) 62. Qf5+ Kxh6 $11) 61... Kh8 {[%emt 0:00:00]} 62. Nf6 {[%emt 0:00:04]} 1-0

[Event "Tata Steel India Women Rapid 2024"]
[Site "Kolkata"]
[Date "2024.11.15"]
[Round "7.4"]
[White "Lagno, Kateryna"]
[Black "Vantika Agrawal"]
[Result "1/2-1/2"]
[ECO "C11"]
[WhiteElo "2527"]
[BlackElo "2392"]
[Annotator "TA"]
[PlyCount "42"]
[EventDate "2024.11.06"]
[EventType "tourn"]
[EventCountry "IND"]
[SourceTitle "playchess.com"]
[Source "ChessBase"]
[SourceQuality "1"]
[TimeControl "1500+10"]

{[%evp 13,42,0,2,0,6,4,0,0,0,0,0,0,0,0,0,0,0,0,0,0,0,0,0,0,0,0,0,0,0,0,0]} 1. e4 {[%emt 0:00:01]} e6 {[%emt 0:00:15]} 2. Nf3 {[%emt 0:00:04]} d5 {[%emt 0:00:33]} 3. Nc3 {[%emt 0:00:05][%cal Bb1c3,Bc3e2,Be2f4][%mdl 32]} Nf6 {[%emt 0:01:32]} 4. e5 {[%emt 0:00:06]} Nfd7 {[%emt 0:00:07]} 5. d4 {[%emt 0:00:03]} c5 {[%emt 0:00:35]} 6. Ne2 {[%emt 0:00:03]} Nc6 {[%emt 0:00:15]} 7. c3 {[%emt 0:00:03]} Be7 {[%emt 0:00:10] The position is equal.} 8. a3 {[%emt 0:00:27]} O-O {[%emt 0:00:37]} 9. Nf4 {[%emt 0:00:30]} Qa5 {[%emt 0:00:39]} 10. Be3 {[%emt 0:06:20]} Nxd4 $1 {[%emt 0:01:28]} 11. Nxd4 {[%emt 0:00:24]} cxd4 {[%emt 0:00:02]} 12. Bxd4 {[%emt 0:00:24]} Qc7 {[%emt 0:00:31]} 13. Bd3 {[%emt 0:00:51]} Nxe5 {[%emt 0:00:33]} 14. Bxh7+ {[%emt 0:00:27]} Kxh7 {[%emt 0:00:03]} 15. Qh5+ {[%emt 0:00:01]} Kg8 {[%emt 0:00:01]} 16. Bxe5 {[%emt 0:00:02]} Bd6 {[%emt 0:00:09]} 17. Bxg7 {[%emt 0:00:47]} Kxg7 {[%emt 0:00:04]} 18. Qg5+ {[%emt 0:00:02]} Kh7 {[%emt 0:01:20]} 19. Qh5+ {[%emt 0:00:18]} (19. Nh5 f5 (19... Bxh2 20. Qg7#) 20. Nf6+ Rxf6 21. Qxf6 Rb8 (21... Bxh2 $2 22. Qh4+ Kg6 23. Rxh2 $18) 22. Qh4+ Kg8 $17) 19... Kg7 {[%emt 0:00:05]} 20. Qg5+ {[%emt 0:00:01]} Kh7 {[%emt 0:00:02]} 21. Qh5+ {[%emt 0:00:02]} (21. Nh5 f5 (21... Bxh2 22. Qg7#) 22. Nf6+ Rxf6 23. Qxf6 Qg7 $17 (23... Bxh2 $2 {is the wrong capture.} 24. g3 $18)) 21... Kg7 {[%emt 0:00:01] An uneventful encounter.   Weighted Error Value: White=0.00 (flawless) /Black=0.00 (flawless) .  OK:         	White=6     	Black=5      Best:        	White=1     	---        Strong:       	---       	Black=1} 1/2-1/2

[Event "Tata Steel India Women Rapid 2024"]
[Site "Kolkata"]
[Date "2024.11.15"]
[Round "7.5"]
[White "Gunina, Valentina"]
[Black "Kosteniuk, Alexandra"]
[Result "0-1"]
[ECO "D38"]
[WhiteElo "2425"]
[BlackElo "2487"]
[Annotator "TA"]
[PlyCount "110"]
[EventDate "2024.11.06"]
[EventType "tourn"]
[EventCountry "IND"]
[SourceTitle "playchess.com"]
[Source "ChessBase"]
[SourceQuality "1"]
[TimeControl "1500+10"]

{[%evp 14,110,21,15,10,10,12,22,19,4,6,0,13,14,45,46,47,50,41,27,23,14,26,0,12,0,0,0,0,-10,0,0,0,-8,0,0,0,-26,-30,-72,-65,-62,-70,-85,-62,-93,0,-88,0,-55,0,-59,-31,-97,-98,-104,0,-73,-71,-50,-55,-60,-34,-29,0,-75,-84,-104,-61,-101,-66,-53,0,-125,0,0,0,-114,-104,-135,-106,-245,-272,-535,-522,-623,-492,-1539,-1179,-29987,-29988,-29989,-29990,-29990,-29982,-29988,-29989,-29989,-29990]} 1. d4 {[%emt 0:00:03]} Nf6 {[%emt 0:00:01]} 2. c4 {[%emt 0:00:02]} e6 {[%emt 0:00:01]} 3. Nf3 {[%emt 0:00:02]} d5 {[%emt 0:00:01]} 4. Nc3 {[%emt 0:00:01]} Bb4 {[%emt 0:00:02]} 5. Bg5 {[%emt 0:00:02]} h6 {[%emt 0:00:04]} 6. Bxf6 {[%emt 0:00:02]} Qxf6 {[%emt 0:00:01]} 7. Qa4+ {[%emt 0:00:02]} Nc6 {[%emt 0:00:02]} 8. e3 {[%emt 0:00:05]} O-O {[%emt 0:00:03]} 9. Be2 {[%emt 0:00:09][%cal Bf1e2,Be2c4,Bc4d5][%mdl 32]} Bxc3+ {[%emt 0:00:04]} 10. bxc3 {[%emt 0:00:02]} Bd7 {[%emt 0:00:03][%cal Oc6d4] [#] Hoping for ...Nxd4! The position is equal.} 11. Qa3 {[%emt 0:00:35]} dxc4 {[%emt 0:00:11]} 12. Bxc4 {[%emt 0:26:05]} e5 {[%emt 0:00:30]} 13. O-O {[%emt 0:00:00]} Bf5 {[%emt 0:26:17]} 14. Bd5 {[%emt 0:00:20]} exd4 {[%emt 0:00:00]} 15. cxd4 {[%emt 0:00:00]} Qd6 {[%emt 0:00:20]} 16. Qxd6 {[%emt 0:00:00]} (16. Qb3 {keeps more tension.} Rad8 17. Bxc6 Qxc6 18. Ne5) 16... cxd6 {[%emt 0:00:10]} 17. Rfc1 {[%emt 0:00:30]} Rac8 {[%emt 0:00:00]} 18. h3 {[%emt 0:00:00]} Na5 {[%emt 0:00:00][%cal Bc6a5,Ba5c4,Bc4d2][%mdl 32]} 19. Nd2 {[%emt 0:00:00][%cal Bf3d2,Bd2e4,Be4c3,Bc3e2,Be2f4][%mdl 32]} Be6 {[%emt 0:00:30]} 20. Bxe6 {[%emt 0:00:00]} fxe6 {[%emt 0:00:10]} 21. Ne4 {[%emt 0:00:00]} Nc4 {[%emt 0:00:00]} 22. a4 b6 {[%emt 0:00:00]} 23. Nc3 d5 {[%emt 0:00:30]} 24. Ne2 {[%emt 0:00:00]} Nd2 {[%emt 0:00:00]} 25. Nf4 {[%emt 0:00:00]} Kf7 {[%emt 0:00:20]} 26. Re1 {[%emt 0:01:30] [#]} Rc2 $1 {[%emt 0:00:10]} 27. Nd3 {[%emt 0:00:00]} Rfc8 {[%emt 0:00:10]} 28. h4 {[%emt 0:00:20]} Nb3 {[%emt 0:00:10]} 29. Rab1 {[%emt 0:00:00]} Nd2 {[%emt 0:00:10]} 30. Ra1 {[%emt 0:00:00]} Nb3 {[%emt 0:00:00] Prevents Rec1} (30... Kf6 $17) 31. Ra3 (31. Rab1 $11 R8c3 32. Red1) 31... Nd2 {[%emt 0:00:00]} (31... R8c3 $15 32. Ne5+ Kf6) 32. Rd1 (32. Raa1 $11) 32... Ke7 {[%emt 0:00:00]} 33. Kh2 ({White should play} 33. Ne1 $15 Rb2 34. Nd3) 33... Ne4 {[%emt 0:00:40]} 34. Kg1 {[%emt 0:01:00]} Nd2 {[%emt 0:00:00] Black has more active pieces.} ({Better is} 34... R8c7 $17 35. a5 g5) 35. h5 {[%emt 0:00:00]} (35. Kh2 $11) 35... Ne4 {[%emt 0:00:00]} 36. a5 {[%emt 0:00:00]} b5 {[%emt 0:00:00]} 37. a6 $1 Kd6 {[%emt 0:00:40]} 38. Rb3 {[%emt 0:00:00]} Rb8 {[%emt 0:00:00]} 39. f3 (39. Rdb1 $11 {keeps the balance.}) 39... Nd2 $36 {[%emt 0:00:20][%mdl 2048] Black is really pushing.} 40. Rb4 {[%emt 0:00:00]} Nc4 {[%emt 0:00:00]} 41. Nc5 e5 {[%emt 0:00:20]} (41... Nxe3 $6 42. Re1 Rc3 (42... Rxg2+ $2 43. Kh1 $18) (42... Nxg2 43. Rxe6+ Kc7 44. Re7+ Kd6 45. Rxg7 $11) 43. Kf2 $11) 42. Nb7+ {[%emt 0:00:00]} Kc6 {[%emt 0:00:00]} (42... Ke7 $1 $15) 43. Rb3 (43. e4 $11 dxe4 44. d5+ Kb6 45. Rdb1) 43... Re8 {[%emt 0:00:20]} ({Black should try} 43... exd4 $17 44. Rxd4 Ra2) 44. e4 $11 {[%emt 0:00:00] Strongly threatening exd5+.} exd4 {[%emt 0:00:10]} 45. Rxd4 {[%emt 0:00:00]} (45. exd5+ $11 {was the only way to keep the balance.} Kb6 46. d6) 45... dxe4 $17 46. fxe4 Re5 {[%emt 0:00:20]} 47. Rg3 {[%emt 0:00:00] Now White is beyond hope.} (47. Nd8+ $17 {is the only way for White.} Kc7 48. Rg3 Rc1+ (48... Rxh5 49. Rxg7+ Kb6 50. Rg6+ Kc5 51. Rd1 $11) 49. Kf2) 47... b4 $19 {[%emt 0:00:10]} (47... Rxh5 48. Rg6+ (48. Rxg7 $2 Rg5 $19) 48... Kc7 49. Rxg7+ Kb6 50. Rg6+ Kc7 51. Rd5 $11) 48. Rxg7 $2 {[%emt 0:02:20]} (48. Rdd3 Nd2 (48... Rxe4 49. Rg6+ Kc7 50. Rxg7+ Kb6 51. Rg6+ Kc7 52. Nc5 $14) (48... Rxh5 $2 49. Nd8+ Kb5 50. Ne6 $19) 49. Rg6+ Kb5 50. Nd6+ Kc5 (50... Kxa6 $2 51. Nc4+ Kb5 52. Nxe5 $18) (50... Ka5 51. Rxd2 b3 52. Rxg7 $18) 51. Rxg7) 48... b3 {[%emt 0:00:00][%cal Ob3b2] White must now prevent ...b2!} (48... Rxh5 49. Nd8+ Kb5 50. Rxa7 $11) 49. Nd8+ {[%emt 0:00:00]} Kc5 {[%emt 0:00:00]} 50. Rd1 {[%emt 0:00:00]} (50. Rd3 $142 Rc1+ (50... Rxe4 $2 {is the wrong capture.} 51. Rxb3 Re1+ 52. Kh2 $18) 51. Kf2) 50... b2 {[%emt 0:00:00] ( -> ...Rc1)} (50... Rxe4 51. Rxa7 Ree2 (51... b2 52. Rc7+ Kb4 53. Rb7+ Kc3 54. a7 $11) 52. Rg7 $17) (50... Rxh5 51. Ne6+ Kb4 52. Nd4 $11) 51. Rxa7 {[%emt 0:00:00]} Rc1 {[%emt 0:00:00] Black mates.} ({Not} 51... Rxh5 52. Rb7 Rc1 53. Ne6+ Kc6 54. Nd8+ Kc5 55. Ne6+ Kc6 56. Nd8+ Kc5 $11) 52. Rc7+ {[%emt 0:00:03]} Kb5 {[%emt 0:00:00]} 53. Rb7+ {[%emt 0:00:36]} Kxa6 {[%emt 0:00:00]} 54. Rf1 {[%emt 0:00:01]} Rxf1+ {[%emt 0:00:00]} 55. Kxf1 {[%emt 0:00:02]} Rb5 {[%emt 0:00:00] Weighted Error Value: White=0.48/Black=0.21 (precise) .  Mistake:       	White=10    	Black=5      Inaccurate:     	White=6     	Black=6      OK:         	White=8     	Black=13     Best:        	---       	Black=2      Strong:       	White=1     	Black=1} 0-1

[Event "Tata Steel India Women Rapid 2024"]
[Site "Kolkata"]
[Date "2024.11.15"]
[Round "8.1"]
[White "Vaishali, Rameshbabu"]
[Black "Lagno, Kateryna"]
[Result "1-0"]
[ECO "A00"]
[WhiteElo "2490"]
[BlackElo "2527"]
[Annotator "TA"]
[PlyCount "83"]
[EventDate "2024.11.06"]
[EventType "tourn"]
[EventCountry "IND"]
[SourceTitle "playchess.com"]
[Source "ChessBase"]
[SourceQuality "1"]
[TimeControl "1500+10"]

{[%evp 9,83,24,21,17,27,12,5,2,7,0,3,14,30,36,25,35,41,9,23,0,26,16,47,59,36,54,47,34,35,39,183,133,123,100,145,159,247,239,235,191,349,332,327,341,332,352,368,399,421,384,426,410,498,442,538,532,839,833,1206,1200,991,859,1668,1277,1106,1286,1258,1249,29960,29960,29972,29977,29982,29982,29974,29975]} 1. Nc3 {[%emt 0:00:03]} e5 {[%emt 0:00:15]} 2. Nf3 {[%emt 0:00:04]} Nc6 {[%emt 0:00:13]} 3. d4 {[%emt 0:00:03]} exd4 {[%emt 0:00:09]} 4. Nxd4 {[%emt 0:00:03]} Nf6 {[%emt 0:00:20]} 5. Bg5 {[%emt 0:00:07]} Bc5 {[%emt 0:02:08]} 6. e3 {[%emt 0:00:11]} O-O {[%emt 0:06:49]} 7. Be2 {[%emt 0:02:39]} Nxd4 {[%emt 0:00:17]} 8. exd4 {[%emt 0:00:04] The position is equal.} Be7 {[%emt 0:00:01]} 9. Qd2 {[%emt 0:00:45]} d5 {[%emt 0:00:20]} 10. O-O-O {[%emt 0:01:59]} Ne4 {[%emt 0:02:41]} 11. Nxe4 {[%emt 0:01:50]} dxe4 {[%emt 0:00:01]} 12. Bxe7 Qxe7 {[%emt 0:00:01]} 13. Qf4 {[%emt 0:00:05]} f5 {[%emt 0:03:39]} 14. Bc4+ {[%emt 0:01:36]} Kh8 {[%emt 0:03:58]} 15. Kb1 {[%emt 0:00:04]} c6 {[%emt 0:00:52]} 16. d5 {[%emt 0:01:31]} Qc5 {[%emt 0:00:48]} 17. Bb3 {[%emt 0:00:12]} Bd7 {[%emt 0:00:07]} 18. Qc7 {[%emt 0:00:48]} Rad8 {[%emt 0:00:38]} 19. Qxb7 {[%emt 0:00:31]} Bc8 {[%emt 0:00:14]} ({Black should try} 19... f4 $14) 20. Qxc6 {[%emt 0:00:31]} (20. Qc7 $18 Rd7 21. Qxc6 Qxf2 22. d6) 20... Qxf2 $16 {[%emt 0:00:01]} 21. g3 $36 {[%emt 0:04:17][%mdl 2048] White is on the roll.} a5 {[%emt 0:00:03]} 22. Qc7 {[%emt 0:00:46]} Ba6 {[%emt 0:00:46]} (22... e3 $16) 23. Qxa5 $18 {[%emt 0:00:11]} Be2 {[%emt 0:00:02]} 24. Qe1 {[%emt 0:01:18]} Qf3 {[%emt 0:00:34] [#]} (24... e3) 25. Rd2 {[%emt 0:00:10]} Ba6 {[%emt 0:00:10]} 26. Rf2 {[%emt 0:00:08]} Qh5 {[%emt 0:00:50]} 27. Qe3 {[%emt 0:00:08]} Bb7 {[%emt 0:00:43]} 28. c4 {[%emt 0:00:37][%cal Bc2c4,Bc4c5,Bc5c6][%mdl 32]} Ba6 {[%emt 0:00:11]} 29. Rhf1 {[%emt 0:01:05]} Qh3 {[%emt 0:00:04]} 30. Rc1 {[%emt 0:01:41]} Rfe8 {[%emt 0:00:36]} 31. Ka1 {[%emt 0:00:35]} h6 {[%emt 0:00:41]} 32. c5 {[%emt 0:00:22]} Bd3 {[%emt 0:00:02]} 33. c6 {[%emt 0:00:06]} f4 {[%emt 0:00:54]} 34. Rxf4 {[%emt 0:00:14]} Rb8 {[%emt 0:00:04]} 35. Bc2 {[%emt 0:02:46]} Qxh2 {[%emt 0:01:22]} 36. Rf2 {[%emt 0:00:03]} (36. Bxd3 $2 Qxb2#) 36... Qh5 {[%emt 0:00:10]} 37. Bxd3 {[%emt 0:00:25]} exd3 {[%emt 0:00:01]} 38. Qxd3 {[%emt 0:00:06]} Rbd8 {[%emt 0:00:15]} 39. d6 {[%emt 0:01:05] White mates.} Qg5 {[%emt 0:00:21]} 40. Rfc2 {[%emt 0:00:53]} Re3 {[%emt 0:00:12] [#]} 41. Qxe3 $3 {[%emt 0:00:43][%mdl 512]} Qxe3 {[%emt 0:00:03]} 42. c7 {[%emt 0:00:02] Weighted Error Value: White=0.12 (very precise) /Black=0.48.  Mistake:       	White=1     	Black=3      Inaccurate:     	White=1     	Black=5      OK:         	White=11    	Black=7      Best:        	White=1     	Black=1} 1-0